bitfinex/quotes_SOLUSD_20250222
["timestamp","ask_amount","ask_price","bid_price","bid_amount"]
[1740212693044,0.063,172.16,172.14,1.6584]
[1740212693865,0.063,172.16,172.14,83.1584]
[1740212697842,0.063,172.16,172.14,81.5]
[1740212697843,11.74263741,172.16,172.14,81.5]
[1740212698047,11.67963741,172.15,172.14,81.5]
[1740212698742,11.74263741,172.16,172.14,81.5]
[1740212699747,5.8088,172.15,172.14,81.5]
[1740212700424,0.063,172.16,172.14,81.5]
[1740212700824,0.063,172.16,172.14,93.17963741]
[1740212701538,0.063,172.16,172.14,81.5]
[1740212703725,0.063,172.16,172.14,128.97963741]
[1740212703925,0.063,172.16,172.14,134.78873741]
[1740212704128,0.063,172.16,172.14,117.3]
[1740212704642,0.063,172.16,172.14,123.1091]
[1740212705749,0.063,172.16,172.14,117.3]
[1740212708953,0.063,172.16,172.14,123.109]
[1740212709356,0.063,172.16,172.14,117.3]
[1740212710241,0.063,172.16,172.15,18.64964886]
[1740212710557,0.063,172.16,172.15,20.20814886]
[1740212712253,0.063,172.16,172.15,137.50814886]
[1740212714137,0.063,172.16,172.15,135.94964886]
[1740212715246,0.063,172.16,172.15,81.5]
[1740212726745,0.063,172.16,172.15,87.3088]
[1740212727789,0.063,172.16,172.15,87.3388]
[1740212728560,0.063,172.16,172.15,111.85928627]
[1740212729671,0.063,172.16,172.15,100.17964886]
[1740212730075,0.063,172.16,172.15,81.53]
[1740212748884,0.063,172.16,172.15,105.98844886]
[1740212749096,0.063,172.16,172.15,124.78795238]
[1740212749396,0.063,172.16,172.15,160.58795238]
[1740212749611,0.063,172.16,172.15,162.17915238]
[1740212749912,0.063,172.16,172.15,208.89770202]
[1740212752796,0.063,172.16,172.15,162.17915238]
[1740212754202,0.063,172.16,172.15,165.04143674]
[1740212766816,0.063,172.16,172.15,135.97964886]
[1740212767201,0.063,172.16,172.15,117.33]
[1740212768691,0.063,172.16,172.15,81.53]
[1740212769702,11.74263741,172.16,172.15,81.53]
[1740212770219,11.74263741,172.16,172.15,0.03]
[1740212770516,25.71773741,172.16,172.15,0.03]
[1740212773616,7.5169,172.16,172.15,0.03]
[1740212773807,5.8715,172.16,172.15,81.53]
[1740212775632,0.063,172.16,172.15,81.53]
[1740212776212,11.74263741,172.16,172.15,0.03]
[1740212776615,0.063,172.16,172.15,0.03]
[1740212782535,11.74263741,172.16,172.15,0.03]
[1740212784700,17.55113741,172.16,172.15,0.03]
[1740212791949,5.8715,172.16,172.15,0.03]
[1740212794317,0.063,172.16,172.15,0.03]
[1740212797739,0.063,172.16,172.15,81.53]
[1740212804740,0.063,172.16,172.15,135.97964886]
[1740212804931,0.063,172.16,172.15,153.46808627]
[1740212806741,0.063,172.16,172.15,160.58795238]
[1740212808067,0.0001,172.16,172.15,161.58795238]
[1740212809559,0.0001,172.16,172.15,229.72743629]
[1740212809760,0.0001,172.16,172.15,183.00888665]
[1740212809945,0.0001,172.16,172.15,229.72743629]
[1740212810345,0.0001,172.16,172.15,183.00888665]
[1740212811356,0.0001,172.16,172.15,164.55888665]
[1740212816453,0.0001,172.16,172.15,212.27743629]
[1740212817069,0.0001,172.16,172.15,218.11223629]
[1740212818663,0.0001,172.16,172.15,171.39368665]
[1740212819870,0.0001,172.16,172.15,188.84368665]
[1740212820172,0.0001,172.16,172.15,171.39368665]
[1740212822673,0.0001,172.16,172.15,163.55888665]
[1740212822888,0.0001,172.16,172.15,135.97964886]
[1740212825091,0.0001,172.16,172.15,81.53]
[1740212825876,25.52293741,172.16,172.15,81.53]
[1740212826063,13.8433,172.16,172.15,81.53]
[1740212826373,25.52293741,172.16,172.15,81.53]
[1740212828772,25.52293741,172.16,172.15,0.03]
[1740212847490,25.52293741,172.16,172.14,0.03]
[1740212847676,11.67963741,172.15,172.13,0.063]
[1740212847875,31.67963741,172.14,172.13,0.063]
[1740212848509,37.48883741,172.14,172.13,0.063]
[1740212850472,38.48883741,172.14,172.12,0.063]
[1740212850673,11.67963741,172.13,172.12,0.063]
[1740212851392,20.0,172.1,172.08,0.063]
[1740212851569,15.89963741,172.09,172.08,0.063]
[1740212854193,21.71053741,172.09,172.08,0.063]
[1740212860983,11.74263741,172.12,172.08,81.563]
[1740212861187,0.063,172.12,172.08,81.563]
[1740212863206,11.67963741,172.09,172.08,0.063]
[1740212863608,15.89963741,172.09,172.08,0.063]
[1740212866326,15.89963741,172.09,172.07,0.063]
[1740212866327,20.0,172.08,172.07,0.0001]
[1740212866518,31.67963741,172.08,172.07,0.0001]
[1740212867409,37.49083741,172.08,172.07,0.0001]
[1740212869829,84.20938705,172.08,172.06,0.0001]
[1740212870031,11.67963741,172.07,172.06,0.0001]
[1740212870249,11.67963741,172.07,172.04,0.0001]
[1740212870418,31.67963741,172.05,172.04,0.0001]
[1740212870939,37.49183741,172.05,172.04,0.0001]
[1740212884467,41.71183741,172.05,172.04,0.0001]
[1740212884758,17.49153741,172.06,172.04,0.0001]
[1740212884968,11.67963741,172.05,172.04,0.0001]
[1740212886257,17.49153741,172.06,172.04,0.0001]
[1740212886443,115.33413741,172.08,172.04,81.5001]
[1740212886649,4.22,172.07,172.04,81.5001]
[1740212887485,10.0316,172.07,172.04,81.5001]
[1740212888369,21.71123741,172.07,172.04,81.5001]
[1740212889667,17.49123741,172.07,172.04,81.5001]
[1740212891067,97.843,172.08,172.04,81.5001]
[1740212891566,97.843,172.08,172.04,117.3001]
[1740212892064,97.843,172.08,172.05,30.32928627]
[1740212892446,0.063,172.08,172.05,18.64964886]
[1740212894074,0.063,172.08,172.05,24.46174886]
[1740212895873,0.063,172.08,172.05,141.76174886]
[1740212896062,0.063,172.08,172.05,135.94964886]
[1740212896771,0.063,172.08,172.05,141.76184886]
[1740212898376,0.063,172.08,172.07,18.64964886]
[1740212898558,0.063,172.08,172.07,147.62928627]
[1740212900175,0.063,172.08,172.07,153.44078627]
[1740212900353,0.063,172.08,172.07,135.94964886]
[1740212904382,0.063,172.08,172.07,141.76114886]
[1740212904761,0.063,172.08,172.07,153.44078627]
[1740212905455,0.063,172.08,172.07,141.76114886]
[1740212910192,0.063,172.08,172.07,153.44078627]
[1740212910586,0.063,172.08,172.07,141.76114886]
[1740212911606,0.063,172.08,172.07,153.44078627]
[1740212911967,0.063,172.08,172.07,141.76114886]
[1740212914474,0.063,172.08,172.07,153.44078627]
[1740212915765,0.063,172.08,172.07,160.56065238]
[1740212916061,0.063,172.08,172.07,161.56065238]
[1740212916889,0.063,172.08,172.07,160.56065238]
[1740212917089,0.063,172.08,172.07,161.56065238]
[1740212918089,0.063,172.08,172.07,160.56065238]
[1740212918388,0.063,172.08,172.07,161.56065238]
[1740212922896,0.063,172.08,172.07,160.56065238]
[1740212923264,0.063,172.08,172.07,141.76114886]
[1740212923468,0.063,172.08,172.07,135.94964886]
[1740212924671,0.063,172.08,172.07,141.76114886]
[1740212926990,0.063,172.08,172.07,153.44078627]
[1740212929789,0.063,172.08,172.07,141.76114886]
[1740212960420,0.063,172.08,172.07,117.3]
[1740212961595,0.063,172.08,172.07,81.5]
[1740212964299,11.74263741,172.08,172.07,81.5]
[1740212967229,0.063,172.08,172.07,81.5]
[1740212972931,0.063,172.08,172.07,117.3]
[1740212973625,0.063,172.08,172.07,123.1115]
[1740212973823,0.063,172.08,172.07,153.44078627]
[1740212977311,0.063,172.08,172.07,141.76114886]
[1740212984328,0.063,172.08,172.07,153.44078627]
[1740212992360,0.063,172.08,172.07,160.92176349]
[1740213002658,0.063,172.08,172.07,149.24212608]
[1740213003976,0.063,172.08,172.07,160.92176349]
[1740213004753,0.063,172.12,172.1,1.0]
[1740213005076,0.063,172.12,172.11,39.14970793]
[1740213005448,0.0001,172.16,172.13,19.64964886]
[1740213005641,0.0001,172.16,172.15,30.32928627]
[1740213006149,0.0001,172.16,172.15,24.45844886]
[1740213006564,0.0001,172.16,172.15,18.64964886]
[1740213008575,0.0001,172.16,172.15,135.94964886]
[1740213012672,0.0001,172.16,172.15,117.3]
[1740213012968,11.67973741,172.16,172.15,81.5]
[1740213014655,17.48823741,172.16,172.15,81.5]
[1740213016357,5.8086,172.16,172.15,81.5]
[1740213018878,17.48823741,172.16,172.15,81.5]
[1740213021176,0.0001,172.16,172.15,81.5]
[1740213023385,0.0001,172.16,172.15,117.3]
[1740213023569,0.0001,172.16,172.15,153.43808627]
[1740213028660,0.0001,172.16,172.15,141.75844886]
[1740213030279,0.0001,172.16,172.15,153.43808627]
[1740213031376,0.0001,172.16,172.15,162.25850793]
[1740213034176,0.0001,172.16,172.15,161.25850793]
[1740213035257,0.0001,172.16,172.15,149.57887052]
[1740213035462,0.0001,172.16,172.15,141.75844886]
[1740213038487,0.0001,172.16,172.15,135.94964886]
[1740213041298,0.0001,172.16,172.15,117.3]
[1740213041483,11.67973741,172.16,172.15,81.5]
[1740213044014,17.48823741,172.16,172.15,81.5]
[1740213045177,19.02063741,172.16,172.15,81.5]
[1740213045378,25.38393741,172.16,172.15,81.5]
[1740213046090,25.38393741,172.16,172.12,0.03]
[1740213046271,11.67963741,172.13,172.12,0.03]
[1740213047099,17.48913741,172.13,172.12,0.03]
[1740213051713,5.8095,172.13,172.12,0.03]
[1740213051908,1.5325,172.16,172.12,0.03]
[1740213052079,0.0001,172.16,172.12,0.03]
[1740213053099,0.0001,172.16,172.12,117.33]
[1740213055011,11.67973741,172.16,172.12,117.33]
[1740213055515,11.67963741,172.15,172.12,117.33]
[1740213055808,11.67963741,172.14,172.12,117.33]
[1740213056106,11.67963741,172.13,172.12,117.33]
[1740213059100,11.67963741,172.13,172.12,81.53]
[1740213060206,0.0001,172.16,172.12,81.53]
[1740213060397,0.0001,172.16,172.12,87.3397]
[1740213060601,0.0001,172.16,172.12,81.53]
[1740213060910,11.67963741,172.15,172.12,81.53]
[1740213063511,11.67973741,172.16,172.12,81.53]
[1740213064019,0.0001,172.16,172.12,87.3398]
[1740213065024,0.0001,172.16,172.12,123.1398]
[1740213070040,11.67963741,172.15,172.12,117.33]
[1740213070635,11.67963741,172.14,172.12,117.33]
[1740213070831,11.67963741,172.13,172.12,117.33]
[1740213071012,11.67963741,172.13,172.12,81.53]
[1740213073049,17.48913741,172.13,172.12,81.53]
[1740213076127,17.48913741,172.13,172.12,0.03]
[1740213078858,11.67963741,172.13,172.12,0.03]
[1740213079026,11.67963741,172.14,172.12,0.03]
[1740213079345,11.67963741,172.15,172.12,0.03]
[1740213079556,0.0001,172.16,172.12,81.53]
[1740213080128,0.0001,172.16,172.12,87.3398]
[1740213080547,0.0001,172.16,172.12,81.53]
[1740213080748,11.67973741,172.16,172.12,81.53]
[1740213085231,17.48833741,172.16,172.12,81.53]
[1740213085858,11.67963741,172.15,172.12,81.53]
[1740213086761,17.48853741,172.15,172.12,81.53]
[1740213087256,11.67973741,172.16,172.12,81.53]
[1740213088142,17.48823741,172.16,172.12,81.53]
[1740213089253,11.67973741,172.16,172.12,81.53]
[1740213090856,11.67963741,172.15,172.12,81.53]
[1740213094649,17.48853741,172.15,172.12,81.53]
[1740213094956,11.67963741,172.13,172.12,0.03]
[1740213095156,17.48913741,172.13,172.12,0.03]
[1740213099767,4.283,172.15,172.12,0.03]
[1740213099938,0.063,172.15,172.12,81.53]
[1740213101362,0.063,172.15,172.12,87.3398]
[1740213101773,0.063,172.15,172.12,81.53]
[1740213102767,0.063,172.15,172.12,87.3398]
[1740213103264,0.063,172.15,172.12,81.53]
[1740213103562,0.063,172.15,172.12,117.33]
[1740213104856,11.74263741,172.15,172.12,117.33]
[1740213105166,11.67963741,172.13,172.12,117.33]
[1740213105562,11.67963741,172.13,172.12,0.03]
[1740213107058,17.48913741,172.13,172.12,0.03]
[1740213113079,11.67963741,172.13,172.12,0.03]
[1740213113256,4.283,172.15,172.12,0.03]
[1740213113462,0.063,172.15,172.12,81.53]
[1740213114949,0.063,172.15,172.12,87.3398]
[1740213118477,0.063,172.15,172.12,123.1398]
[1740213119155,0.063,172.15,172.12,134.81943741]
[1740213119388,0.063,172.15,172.13,11.67963741]
[1740213119590,0.063,172.15,172.12,134.81943741]
[1740213119778,0.063,172.15,172.12,123.1398]
[1740213121681,0.063,172.15,172.12,134.81943741]
[1740213123156,0.063,172.15,172.12,123.1398]
[1740213124760,0.063,172.15,172.14,11.67963741]
[1740213124958,0.063,172.15,172.14,17.48883741]
[1740213128482,0.063,172.15,172.12,117.33]
[1740213128665,0.063,172.15,172.14,81.5]
[1740213130294,0.063,172.15,172.14,87.3092]
[1740213132682,0.063,172.15,172.14,81.5]
[1740213133282,0.063,172.15,172.14,117.3]
[1740213133784,11.74263741,172.15,172.14,81.5]
[1740213134766,17.55143741,172.15,172.12,81.53]
[1740213134978,11.67963741,172.13,172.12,81.53]
[1740213136685,11.74263741,172.15,172.12,81.53]
[1740213136877,0.063,172.15,172.12,81.53]
[1740213138466,0.063,172.15,172.12,87.3397]
[1740213138863,0.063,172.15,172.12,81.53]
[1740213139994,18.25392558,172.14,172.12,81.53]
[1740213140479,18.25392558,172.13,172.12,81.53]
[1740213140684,24.06342558,172.13,172.12,81.53]
[1740213142300,24.06342558,172.13,172.12,0.03]
[1740213143085,5.8095,172.13,172.12,0.03]
[1740213143287,24.06342558,172.13,172.12,0.03]
[1740213143803,18.31692558,172.15,172.12,0.03]
[1740213144005,0.063,172.15,172.12,0.03]
[1740213145082,0.063,172.15,172.13,18.25392558]
[1740213145387,0.063,172.15,172.14,18.25392558]
[1740213145585,0.063,172.15,172.13,18.25392558]
[1740213147497,0.063,172.15,172.12,143.01492558]
[1740213150791,0.063,172.15,172.12,117.33]
[1740213153903,0.063,172.15,172.12,123.1398]
[1740213154106,0.063,172.15,172.12,87.3398]
[1740213154506,0.063,172.15,172.12,81.53]
[1740213157504,0.063,172.15,172.12,117.33]
[1740213159317,18.25392558,172.14,172.12,117.33]
[1740213159520,18.25392558,172.13,172.12,0.03]
[1740213160193,18.25392558,172.14,172.12,0.03]
[1740213160619,11.68907543,172.13,172.12,0.03]
[1740213161393,17.49857543,172.13,172.12,0.03]
[1740213163113,17.56117543,172.15,172.12,0.03]
[1740213163317,0.063,172.15,172.12,0.03]
[1740213163497,0.063,172.15,172.12,81.53]
[1740213165125,5.8719,172.15,172.12,81.53]
[1740213165825,0.063,172.15,172.12,81.53]
[1740213169928,0.063,172.15,172.13,18.2547253]
[1740213170509,0.063,172.15,172.12,105.5945253]
[1740213171335,0.063,172.15,172.13,18.2547253]
[1740213172217,0.063,172.15,172.14,18.2547253]
[1740213174007,0.063,172.15,172.14,24.0639253]
[1740213177913,0.063,172.15,172.14,141.3639253]
[1740213186837,0.063,172.15,172.14,134.78714698]
[1740213188433,0.063,172.15,172.14,117.3]
[1740213188637,0.063,172.15,172.14,81.5]
[1740213190736,0.063,172.15,172.14,87.3092]
[1740213191936,0.063,172.15,172.14,98.98714698]
[1740213198446,0.063,172.15,172.14,134.78714698]
[1740213199142,0.0001,172.15,172.14,156.04609584]
[1740213199335,0.0001,172.15,172.14,163.34507306]
[1740213199924,0.0001,172.15,172.14,162.34507306]
[1740213201735,0.0001,172.15,172.14,163.34507306]
[1740213203249,0.0001,172.15,172.14,162.34507306]
[1740213203631,0.0001,172.15,172.14,163.34507306]
[1740213208722,0.0001,172.15,172.14,162.34507306]
[1740213210251,0.0001,172.15,172.14,149.05782608]
[1740213210550,0.0001,172.15,172.14,160.73577306]
[1740213210753,0.0001,172.15,172.14,161.73577306]
[1740213222863,0.0001,172.15,172.14,160.73577306]
[1740213223568,0.0001,172.15,172.14,161.73577306]
[1740213223779,0.0001,172.15,172.14,162.73577306]
[1740213225148,0.0001,172.15,172.14,162.76577306]
[1740213229075,0.0001,172.15,172.14,180.22577306]
[1740213229392,0.03,172.21,172.19,18.64964886]
[1740213229548,0.03,172.21,172.2,11.67794698]
[1740213229748,0.03,172.21,172.2,19.51136864]
[1740213230359,0.03,172.21,172.2,25.31856864]
[1740213230995,0.03,172.21,172.2,17.48514698]
[1740213234368,0.03,172.21,172.2,134.78514698]
[1740213241194,0.03,172.21,172.2,128.97794698]
[1740213241392,0.03,172.21,172.2,117.3]
[1740213241591,1.6397,172.21,172.2,117.3]
[1740213242692,7.4465,172.21,172.2,117.3]
[1740213243895,1.6397,172.21,172.2,117.3]
[1740213245481,19.12444698,172.21,172.16,117.3]
[1740213245797,11.67794698,172.2,172.16,117.3]
[1740213246177,7.4465,172.21,172.16,117.3]
[1740213246178,19.12444698,172.21,172.16,117.3]
[1740213247193,11.67794698,172.19,172.14,81.53]
[1740213247507,11.67794698,172.18,172.14,81.53]
[1740213249001,5.8082,172.17,172.16,0.03]
[1740213249190,5.8079,172.18,172.16,0.03]
[1740213253490,13.31764698,172.21,172.16,0.03]
[1740213253686,19.12454698,172.21,172.16,0.03]
[1740213253903,7.4466,172.21,172.16,0.03]
[1740213255811,1.6397,172.21,172.16,99.01634698]
[1740213256004,0.03,172.21,172.18,11.67794698]
[1740213256208,0.03,172.21,172.18,93.17794698]
[1740213256608,0.03,172.21,172.18,81.5]
[1740213257398,5.8369,172.21,172.18,81.5]
[1740213257586,0.03,172.21,172.18,81.5]
[1740213258191,0.03,172.21,172.18,93.17794698]
[1740213259313,0.03,172.21,172.18,81.5]
[1740213260011,0.03,172.21,172.18,87.3078]
[1740213260397,0.03,172.21,172.18,81.5]
[1740213261117,0.03,172.21,172.18,87.3078]
[1740213266717,0.03,172.21,172.19,11.67794698]
[1740213267220,0.03,172.21,172.2,11.67794698]
[1740213269217,0.03,172.21,172.2,17.48514698]
[1740213270117,0.03,172.21,172.2,134.78514698]
[1740213270319,0.03,172.21,172.2,153.43479584]
[1740213270508,0.063,172.25,172.24,11.67794698]
[1740213270710,0.063,172.25,172.24,93.17794698]
[1740213272633,0.063,172.25,172.24,98.98374698]
[1740213274133,0.063,172.25,172.24,87.3058]
[1740213275925,0.063,172.25,172.24,81.5]
[1740213276818,0.063,172.25,172.24,87.3058]
[1740213277430,0.063,172.25,172.24,81.5]
[1740213281834,0.063,172.25,172.21,81.5]
[1740213282134,5.8685,172.25,172.21,81.5]
[1740213286016,0.063,172.25,172.22,11.67794698]
[1740213287848,0.063,172.25,172.22,93.17794698]
[1740213288020,0.063,172.25,172.22,98.98414698]
[1740213289844,0.063,172.25,172.23,11.67794698]
[1740213290045,0.063,172.25,172.22,87.3062]
[1740213290046,0.063,172.25,172.24,11.67794698]
[1740213291447,0.063,172.25,172.24,17.48374698]
[1740213292823,0.063,172.25,172.24,142.66433496]
[1740213296953,0.063,172.25,172.24,161.31398382]
[1740213298253,0.063,172.26,172.24,163.31398382]
[1740213298437,0.03,172.27,172.25,40.07855784]
[1740213298637,0.03,172.27,172.26,78.03938376]
[1740213298839,0.03,172.27,172.26,86.23774951]
[1740213299557,0.03,172.27,172.26,92.04284951]
[1740213300159,0.03,172.27,172.26,92.91317793]
[1740213301557,0.03,172.27,172.26,46.20139001]
[1740213301857,0.063,172.3,172.27,29.51091461]
[1740213302158,0.063,172.3,172.29,30.32759584]
[1740213302336,0.063,172.3,172.29,38.52596159]
[1740213302531,0.063,172.3,172.29,43.59623536]
[1740213303863,0.063,172.3,172.29,49.40033536]
[1740213305658,0.063,172.3,172.29,166.70033536]
[1740213305858,0.063,172.3,172.29,165.83006159]
[1740213308537,0.063,172.3,172.29,168.74701992]
[1740213314780,0.03,172.33,172.31,1.0]
[1740213314976,0.03,172.33,172.32,20.0]
[1740213315162,0.03,172.33,172.32,39.68121162]
[1740213315472,0.03,172.33,172.32,61.20089091]
[1740213315681,0.0001,172.33,172.32,195.96089091]
[1740213315977,0.0001,172.34,172.33,20.64964886]
[1740213316145,0.0001,172.34,172.33,40.57641604]
[1740213316645,0.0001,172.34,172.33,157.87641604]
[1740213316846,0.0001,172.34,172.33,163.67921604]
[1740213318771,0.0001,172.34,172.33,182.67041604]
[1740213323478,0.0001,172.34,172.33,153.43039584]
[1740213323657,0.0001,172.34,172.33,81.5]
[1740213324555,11.67804698,172.34,172.33,81.5]
[1740213324757,11.67804698,172.34,172.31,81.5]
[1740213324953,17.48074698,172.33,172.29,81.5]
[1740213325278,11.67794698,172.3,172.26,117.3]
[1740213325583,11.67794698,172.29,172.26,81.5]
[1740213325767,11.67794698,172.3,172.26,81.5]
[1740213326583,1.5094,172.29,172.26,81.5]
[1740213326759,13.18734698,172.29,172.26,81.5]
[1740213327159,1.5094,172.29,172.26,81.5]
[1740213327980,1.5094,172.29,172.26,87.3051]
[1740213328186,1.5094,172.29,172.26,98.98304698]
[1740213328487,6.0437,172.32,172.28,11.67794698]
[1740213328669,1.5094,172.33,172.28,17.48214698]
[1740213328877,1.5094,172.33,172.29,11.67794698]
[1740213329058,1.5094,172.33,172.28,5.8042]
[1740213329259,11.67794698,172.32,172.26,87.3051]
[1740213329874,18.99014698,172.33,172.26,98.98304698]
[1740213331577,18.99014698,172.33,172.26,99.04604698]
[1740213331963,11.67794698,172.32,172.26,87.3681]
[1740213332364,11.67794698,172.3,172.26,81.563]
[1740213332583,11.67794698,172.28,172.26,81.563]
[1740213333164,17.72164698,172.29,172.26,81.563]
[1740213333484,1.5094,172.33,172.26,93.24094698]
[1740213333783,13.18734698,172.33,172.26,99.04594698]
[1740213333963,1.5094,172.33,172.26,99.04594698]
[1740213334171,1.5094,172.33,172.27,11.67794698]
[1740213334489,1.5094,172.33,172.26,87.368]
[1740213334490,1.5094,172.33,172.28,11.67794698]
[1740213334982,1.5094,172.33,172.26,120.53054886]
[1740213334983,1.5094,172.33,172.27,18.64964886]
[1740213335868,1.5094,172.33,172.28,11.67794698]
[1740213336263,1.5094,172.33,172.29,5.8041]
[1740213337381,1.5094,172.33,172.28,5.8045]
[1740213338267,1.5094,172.33,172.28,123.1045]
[1740213338783,1.5094,172.33,172.28,134.78244698]
[1740213339370,0.0001,172.34,172.3,11.67794698]
[1740213339567,0.0001,172.34,172.32,11.67794698]
[1740213339983,0.0001,172.34,172.33,31.1977374]
[1740213340286,0.0001,172.34,172.33,38.98289093]
[1740213340491,0.0001,172.34,172.33,38.11274937]
[1740213340792,0.0001,172.34,172.33,43.91554937]
[1740213341967,0.0001,172.34,172.33,5.8028]
[1740213343487,0.0001,172.34,172.32,117.3]
[1740213344269,0.0001,172.34,172.32,81.5]
[1740213345988,11.67794698,172.33,172.32,81.5]
[1740213346397,13.20424698,172.34,172.32,81.5]
[1740213349395,11.67794698,172.33,172.29,81.5]
[1740213349567,11.67794698,172.32,172.29,81.5]
[1740213349773,11.67794698,172.31,172.29,81.5]
[1740213349973,17.48144698,172.31,172.29,81.5]
[1740213350187,11.67794698,172.3,172.29,81.5]
[1740213351387,11.67794698,172.3,172.26,81.563]
[1740213352498,17.48184698,172.3,172.26,81.563]
[1740213352674,11.67794698,172.28,172.26,81.563]
[1740213354274,11.67794698,172.27,172.26,81.563]
[1740213355402,11.67794698,172.28,172.26,81.563]
[1740213356196,11.67794698,172.3,172.26,5.8681]
[1740213356573,11.67794698,172.3,172.26,0.063]
[1740213356774,11.67794698,172.28,172.26,0.063]
[1740213356978,11.67794698,172.29,172.26,0.063]
[1740213357395,11.67794698,172.27,172.26,0.063]
[1740213358899,11.67794698,172.28,172.26,0.063]
[1740213359202,3.5263,172.34,172.26,0.063]
[1740213359203,11.67794698,172.3,172.26,0.063]
[1740213361407,17.48184698,172.3,172.26,0.063]
[1740213362016,11.67794698,172.29,172.26,0.063]
[1740213362396,11.67794698,172.28,172.26,0.063]
[1740213362593,11.67794698,172.27,172.26,0.063]
[1740213362802,13.23084698,172.27,172.26,0.063]
[1740213363010,19.03564698,172.27,172.26,0.063]
[1740213366603,25.59841224,172.27,172.26,0.063]
[1740213369909,43.83912448,172.27,172.26,0.063]
[1740213371391,44.83912448,172.27,172.26,0.063]
[1740213381407,43.83912448,172.27,172.26,0.063]
[1740213381731,25.59841224,172.27,172.26,0.063]
[1740213383130,24.04551224,172.27,172.26,0.063]
[1740213388613,17.47875189,172.27,172.26,0.063]
[1740213418557,20.0,172.22,172.21,0.03]
[1740213418738,31.67395189,172.22,172.21,0.03]
[1740213418939,35.87395189,172.22,172.21,0.03]
[1740213420465,41.68045189,172.22,172.21,0.03]
[1740213426269,56.19675189,172.22,172.16,0.03]
[1740213426570,11.67395189,172.17,172.16,0.03]
[1740213426763,58.36975945,172.17,172.16,0.03]
[1740213426969,77.01940831,172.17,172.16,0.03]
[1740213428062,17.48215189,172.17,172.16,0.03]
[1740213434774,11.67395189,172.17,172.16,0.03]
[1740213435780,11.67395189,172.18,172.16,0.03]
[1740213437450,11.67395189,172.19,172.16,0.03]
[1740213441879,97.7,172.21,172.16,7.7346]
[1740213442063,97.7,172.21,172.16,89.2346]
[1740213443384,11.67395189,172.22,172.17,5.8082]
[1740213444474,11.67395189,172.23,172.17,5.8082]
[1740213444686,11.67395189,172.22,172.17,5.8082]
[1740213445361,11.67395189,172.22,172.16,95.043]
[1740213445562,17.48055189,172.22,172.16,95.043]
[1740213446082,11.67395189,172.21,172.16,95.043]
[1740213446786,17.48075189,172.21,172.16,89.2346]
[1740213447393,11.67395189,172.21,172.16,95.0431]
[1740213449464,11.67395189,172.22,172.16,95.0431]
[1740213449664,11.67395189,172.23,172.16,95.0431]
[1740213450167,0.063,172.21,172.16,95.0431]
[1740213450467,0.063,172.21,172.17,11.67395189]
[1740213451368,0.063,172.21,172.18,5.8078]
[1740213451571,0.063,172.21,172.2,11.67395189]
[1740213451775,0.063,172.21,172.2,93.17395189]
[1740213452163,0.063,172.21,172.2,81.5]
[1740213453379,0.063,172.21,172.2,87.3072]
[1740213459769,0.063,172.21,172.2,98.98115189]
[1740213460273,0.063,172.21,172.2,87.3072]
[1740213461696,0.063,172.21,172.2,98.98115189]
[1740213461878,0.063,172.21,172.2,99.01115189]